bitfinex-derivatives/quotes_ETHF0:USTF0_20210107
["timestamp","ask_amount","ask_price","bid_price","bid_amount"]
[1610020617230,11.051,1191.9,1190.7,57.9026]
[1610020620434,3.674,1191.9,1190.7,57.9026]
[1610020626241,3.674,1191.9,1188.3,11.8983]
[1610020626439,3.674,1191.9,1189.8,69.7426]
[1610020628541,3.674,1191.9,1188.3,11.8983]
[1610020628741,3.674,1191.9,1189.8,67.9701]
[1610020628940,3.674,1191.9,1188.3,11.8983]
[1610020629141,3.674,1191.9,1189.7,51.3806]
[1610020629340,3.674,1191.9,1188.3,11.8983]
[1610020629542,3.674,1191.9,1190.2,63.4673]
[1610020629742,3.674,1191.9,1188.3,11.8983]
[1610020629941,3.674,1191.9,1189.8,59.2514]
[1610020630742,3.674,1191.9,1188.3,11.8983]
[1610020630940,3.674,1191.9,1189.7,63.3881]
[1610020631142,3.674,1191.9,1188.3,11.8983]
[1610020631542,3.674,1191.9,1190.7,68.4305]
[1610020632142,3.674,1191.9,1188.3,11.8983]
[1610020632342,3.674,1191.9,1190.1,66.4385]
[1610020639750,3.674,1191.9,1188.3,11.8983]
[1610020639950,3.674,1191.9,1185.9,11.051]
[1610020640150,3.674,1191.9,1190.3,55.2449]
[1610020640350,3.674,1191.9,1186.0,6.0606]
[1610020640550,3.674,1191.9,1190.2,66.4781]
[1610020640754,3.674,1191.9,1186.1,6.061]
[1610020641149,3.674,1191.9,1190.0,1.0]
[1610020641551,3.674,1191.9,1191.1,53.3174]
[1610020642150,7.77681176,1192.0,1191.1,53.3174]
[1610020642952,9.43541176,1192.0,1191.1,53.3174]
[1610020643753,7.77681176,1192.0,1191.1,53.3174]
[1610020645055,11.45081176,1192.0,1190.1,5.8095]
[1610020645456,7.77681176,1192.0,1191.2,61.7173]
[1610020646257,7.77681176,1192.0,1190.1,5.8095]
[1610020646456,11.45081176,1192.0,1191.5,46.9246]
[1610020646658,7.77681176,1192.0,1190.1,5.8095]
[1610020646856,11.45081176,1192.0,1190.1,5.8095]
[1610020647057,7.77681176,1192.0,1191.6,68.1677]
[1610020647456,7.77681176,1192.0,1190.1,5.8095]
[1610020647856,7.77681176,1192.0,1191.2,66.4863]
[1610020648257,7.77681176,1192.0,1190.1,5.8095]
[1610020648457,7.77681176,1192.0,1191.1,55.5415]
[1610020648657,0.39981176,1192.0,1191.1,55.5415]
[1610020652766,0.39981176,1192.0,1190.1,5.8095]
[1610020652964,4.07381176,1192.0,1190.1,5.8095]
[1610020653165,0.39981176,1192.0,1190.5,155.7237]
[1610020653366,0.39981176,1192.0,1191.7,60.1378]
[1610020653367,4.07381176,1192.0,1191.7,60.1378]
[1610020654467,4.07381176,1192.0,1190.1,5.8095]
[1610020654667,4.07381176,1192.0,1191.0,49.6122]
[1610020654971,0.39981176,1192.0,1191.0,49.6122]
[1610020655368,0.39981176,1192.0,1191.1,65.8906]
[1610020655567,4.07381176,1192.0,1190.1,5.8095]
[1610020655975,4.07381176,1192.0,1191.6,53.3383]
[1610020659977,4.07381176,1192.0,1190.1,5.8095]
[1610020660175,4.07381176,1192.0,1190.8,64.4015]
[1610020662177,4.07381176,1192.0,1190.1,5.8095]
[1610020662377,4.07381176,1192.0,1191.3,59.9003]
[1610020662581,4.07381176,1192.0,1190.1,5.8095]
[1610020662777,4.07381176,1192.0,1191.8,67.8857]
[1610020663678,4.07381176,1192.0,1190.1,5.8095]
[1610020663878,4.07381176,1192.0,1190.6,54.9526]
[1610020668582,4.07381176,1192.0,1190.1,6.0042]
[1610020668782,4.07381176,1192.0,1191.1,64.2919]
[1610020668982,4.07381176,1192.0,1190.1,6.0042]
[1610020669182,4.07381176,1192.0,1191.0,58.6478]
[1610020670287,4.07381176,1192.0,1190.1,6.0042]
[1610020670686,4.07381176,1192.0,1191.1,66.1738]
[1610020670887,4.07381176,1192.0,1190.1,6.0042]
[1610020671088,4.07381176,1192.0,1191.1,62.3256]
[1610020671286,4.07381176,1192.0,1190.1,6.0042]
[1610020671486,4.07381176,1192.0,1191.7,55.5214]
[1610020682000,4.07381176,1192.0,1190.2,6.2761]
[1610020682200,4.07381176,1192.0,1190.6,67.8594]
[1610020683403,4.07381176,1192.0,1190.2,6.2761]
[1610020683705,4.07381176,1192.0,1191.0,52.9344]
[1610020683903,4.07381176,1192.0,1190.2,6.2761]
[1610020684103,4.07381176,1192.0,1191.4,63.9154]
[1610020685204,4.05144074,1192.0,1191.4,63.9154]
[1610020698926,4.05144074,1192.0,1191.4,61.7164]
[1610020705435,0.37744074,1192.0,1191.4,61.7164]
[1610020706036,0.37744074,1192.0,1190.2,6.2761]
[1610020706235,0.37744074,1192.0,1191.5,53.0147]
[1610020706437,0.37744074,1192.0,1190.2,6.2761]
[1610020706835,0.37744074,1192.0,1191.5,52.1278]
[1610020707840,0.37744074,1192.0,1191.6,5.9518]
[1610020708237,0.37744074,1192.0,1191.6,11.7291]
[1610020726054,66.01106426,1196.6,1191.6,11.7291]
[1610020726254,55.01906426,1196.6,1192.7,61.7808]
[1610020726455,77.06206426,1196.6,1192.7,61.7808]
[1610020726857,81.07165426,1196.6,1192.7,61.7808]
[1610020727057,81.07165426,1196.6,1192.8,5.7642]
[1610020727558,77.06206426,1196.6,1192.8,5.7642]
[1610020728159,77.06206426,1196.6,1192.8,11.8037]
[1610020730063,22.043,1196.6,1192.8,11.8037]
[1610020730462,22.043,1196.6,1194.0,48.8043]
[1610020737268,22.043,1196.6,1194.1,6.0767]
[1610020737467,22.043,1196.6,1194.1,12.004]
[1610020738267,14.666,1196.6,1195.0,49.0472]
[1610020738467,14.666,1196.6,1194.1,12.004]
[1610020738667,14.666,1196.6,1195.0,61.3046]
[1610020739268,10.992,1196.6,1195.0,63.6834]
[1610020739468,14.666,1196.6,1195.0,2.3788]
[1610020739667,10.992,1196.6,1195.0,2.3788]
[1610020739868,10.992,1196.6,1195.5,66.2213]
[1610020740068,10.992,1196.6,1195.5,68.9078]
[1610020740271,58.46581176,1198.0,1195.5,68.9078]
[1610020744468,58.46581176,1198.0,1195.5,2.6865]
[1610020744870,58.46581176,1198.0,1196.2,55.2432]
[1610020745071,22.44281176,1198.0,1196.2,55.2432]
[1610020746772,22.44281176,1198.0,1196.2,57.5085]
[1610020749176,15.06581176,1198.0,1196.2,57.5085]
[1610020749676,22.44281176,1198.0,1196.2,57.5085]
[1610020749976,15.06581176,1198.0,1196.2,57.5085]
[1610020750977,22.44281176,1198.0,1196.2,57.5085]
[1610020752582,22.44281176,1198.0,1196.2,2.2653]
[1610020752782,15.06581176,1198.0,1196.2,2.2653]
[1610020752982,15.06581176,1198.0,1195.1,12.0852]
[1610020752983,15.06581176,1198.0,1196.5,67.9922]
[1610020754383,15.06581176,1198.0,1196.5,2.8023]
[1610020756883,4.00959,1197.9,1196.5,2.8023]
[1610020757484,15.06581176,1198.0,1196.5,2.8023]
[1610020758182,15.06581176,1198.0,1192.3,5.9479]
[1610020758385,67.2166,1197.7,1194.5,58.8214]
[1610020758585,6.0989,1197.6,1192.3,5.9479]
[1610020758784,13.4759,1197.6,1193.1,71.2452]
[1610020758984,11.38719,1197.2,1193.1,71.2452]
[1610020759184,11.38719,1197.2,1193.2,6.211]
[1610020759584,11.38719,1197.2,1193.3,5.9736]
[1610020760886,4.00959,1196.5,1193.3,5.9736]
[1610020761285,7.68359,1196.5,1193.3,5.9736]
[1610020761585,7.68359,1196.5,1193.1,71.2452]
[1610020762387,16.41159,1196.5,1193.1,71.2452]
[1610020762587,7.68359,1196.5,1193.1,2.7427]
[1610020762788,64.5956,1196.2,1193.1,2.7427]
[1610020762987,4.00959,1195.9,1193.1,2.7427]
[1610020763287,64.5956,1196.2,1193.1,2.7427]
[1610020763888,64.5956,1196.2,1193.1,2.0424]
[1610020764890,4.00959,1195.0,1193.1,2.0424]
[1610020766893,4.00959,1194.8,1193.1,2.0424]
[1610020768896,4.00959,1194.0,1192.1,55.5007]
[1610020770298,4.00959,1194.0,1190.5,5.9027]
[1610020770701,49.1932,1194.3,1190.5,5.9027]
[1610020771501,4.00959,1194.4,1190.5,5.9027]
[1610020771701,6.0494,1196.0,1190.5,5.9027]
[1610020771702,49.0577,1195.7,1191.3,49.5547]
[1610020772901,4.00959,1195.2,1191.3,49.5547]
[1610020773902,6.0494,1196.0,1191.4,6.3332]
[1610020774103,6.0494,1196.0,1192.3,49.9683]
[1610020774904,10.05899,1196.0,1192.3,49.9683]
[1610020775505,6.0494,1196.0,1192.3,49.9683]
[1610020775707,13.4264,1196.0,1192.3,49.9683]
[1610020776006,13.4264,1196.0,1192.4,5.7487]
[1610020777006,4.00959,1195.7,1192.4,5.7487]
[1610020778908,4.00959,1195.2,1192.3,49.9683]
[1610020780115,22.4071,1196.0,1192.3,49.9683]
[1610020781018,4.00959,1195.8,1192.3,49.9683]
[1610020781220,22.4071,1196.0,1192.3,49.9683]
[1610020782517,22.4071,1196.0,1192.3,52.2753]
[1610020783017,4.00959,1195.6,1192.3,52.2753]
[1610020783218,22.4071,1196.0,1192.4,5.8249]
[1610020785023,26.41669,1196.0,1192.4,5.8249]
[1610020785323,22.4071,1196.0,1192.4,5.8249]
[1610020786324,22.4071,1196.0,1192.5,6.0833]
[1610020786625,7.377,1196.0,1192.5,6.0833]
[1610020786823,7.377,1196.0,1193.5,56.9772]
[1610020788626,7.377,1196.0,1193.6,5.7258]
[1610020788828,7.377,1196.0,1193.6,11.7357]
[1610020791629,7.377,1196.0,1193.6,6.0099]
[1610020791827,7.377,1196.0,1192.3,2.307]
[1610020792027,7.377,1196.0,1188.5,5.7281]
[1610020792228,7.377,1196.0,1188.6,5.7302]
[1610020797035,4.00959,1195.8,1188.6,5.7302]
[1610020798437,1.1242,1195.7,1188.6,5.7302]
[1610020798836,6.2378,1195.6,1188.6,5.7302]
[1610020799036,10.24739,1195.6,1188.6,5.7302]
[1610020801137,6.2378,1195.6,1188.6,5.7302]
[1610020801435,9.9118,1195.6,1188.6,5.7302]
[1610020805239,3.674,1195.6,1188.6,5.7302]
[1610020811652,14.666,1196.5,1188.6,5.7302]
[1610020812053,14.666,1196.5,1190.0,3.2606]
[1610020812751,14.666,1196.5,1190.0,6.9346]
[1610020813151,14.666,1196.5,1190.1,6.2885]
[1610020813551,3.674,1196.5,1190.2,6.114]
[1610020815253,14.666,1196.5,1190.2,6.114]
[1610020819756,5.8351,1196.4,1190.2,6.114]
[1610020820660,1.1379,1196.3,1190.2,6.114]
[1610020820861,8.5149,1196.3,1190.2,6.114]
[1610020821058,4.00959,1196.1,1190.2,6.114]
[1610020821260,8.5149,1196.3,1190.2,6.114]
[1610020823162,4.00959,1195.7,1190.2,6.114]
[1610020823566,5.8375,1195.6,1190.2,6.114]
[1610020823860,6.9775,1195.6,1190.2,6.114]
[1610020825062,4.00959,1195.3,1190.2,6.114]
[1610020825263,7.68359,1195.3,1190.2,6.114]
[1610020827464,3.674,1195.3,1190.2,6.114]
[1610020829165,4.00959,1194.4,1190.2,6.114]
[1610020829367,3.674,1195.3,1190.2,6.114]
[1610020833072,7.68359,1195.3,1190.2,6.114]
[1610020833470,3.674,1195.3,1190.2,6.114]
[1610020839177,4.00959,1194.4,1190.2,6.114]
[1610020840078,3.674,1195.3,1190.2,6.114]
[1610020841280,4.00959,1194.2,1190.2,6.114]
[1610020842079,3.674,1195.3,1190.2,6.114]
[1610020843279,4.00959,1193.6,1190.2,6.114]
[1610020844379,4.00959,1193.6,1190.0,3.2606]
[1610020845180,4.00959,1192.5,1190.0,3.2606]
[1610020845783,36.9893,1194.6,1190.0,3.2606]
[1610020845982,6.9893,1194.6,1190.0,3.2606]
[1610020847182,4.00959,1193.4,1190.0,3.2606]
[1610020849185,4.00959,1193.7,1190.0,3.2606]
[1610020851186,3.674,1193.7,1190.0,3.2606]
[1610020854188,11.051,1195.0,1190.0,3.2606]
[1610020855589,5.7933,1194.9,1190.0,3.2606]
[1610020855790,16.7853,1194.9,1190.0,3.2606]
[1610020855994,17.9159,1194.9,1190.0,3.2606]
[1610020857190,4.00959,1194.6,1190.0,3.2606]
[1610020858091,17.9159,1194.9,1190.0,3.2606]
[1610020859293,4.00959,1194.2,1190.0,3.2606]
[1610020860194,4.00959,1194.2,1190.3,63.9252]
[1610020861293,4.00959,1193.6,1190.3,63.9252]
[1610020861494,61.6437,1194.6,1190.3,63.9252]
[1610020869405,4.00959,1194.4,1190.3,63.9252]
[1610020871308,4.00959,1193.3,1190.3,63.9252]
[1610020871510,15.06059,1193.3,1190.3,63.9252]
[1610020872408,11.051,1193.3,1190.3,63.9252]
[1610020873410,3.674,1193.3,1190.3,63.9252]
[1610020874010,11.051,1193.3,1190.3,63.9252]
[1610020874509,11.051,1193.3,1190.4,5.9989]
[1610020874710,3.674,1193.3,1190.4,5.9989]
[1610020874912,11.051,1193.3,1190.4,5.9989]
[1610020875315,3.674,1193.3,1190.4,5.9989]
[1610020875715,3.674,1193.3,1191.3,66.2566]
[1610020878317,11.051,1193.3,1191.3,66.2566]
[1610020878918,11.051,1193.3,1190.4,5.9989]
[1610020879117,11.051,1193.3,1190.4,72.4692]
[1610020879918,11.051,1193.3,1190.4,66.4703]
[1610020881521,4.00959,1193.2,1190.4,66.4703]
[1610020882319,11.051,1193.3,1190.4,66.4703]
[1610020883421,4.00959,1193.2,1190.4,66.4703]
[1610020883820,11.051,1193.3,1190.4,66.4703]
[1610020885524,4.00959,1192.9,1190.0,18.2606]
[1610020887426,4.00959,1192.6,1190.0,18.2606]
[1610020887827,11.54279,1192.6,1190.0,18.2606]
[1610020889426,4.00959,1192.2,1190.0,18.2606]
[1610020890934,7.5332,1192.6,1190.0,18.2606]
[1610020891529,4.00959,1192.3,1190.0,18.2606]
[1610020892829,8.93991318,1192.3,1190.0,18.2606]
[1610020893429,4.00959,1191.7,1190.0,18.2606]
[1610020893630,4.93032318,1192.3,1190.0,18.2606]
[1610020895530,4.00959,1192.0,1190.0,18.2606]
[1610020897435,8.93991318,1192.3,1190.0,18.2606]
[1610020898037,4.93032318,1192.3,1190.0,18.2606]
[1610020900139,8.60432318,1192.3,1190.0,18.2606]
[1610020904644,8.60432318,1192.3,1190.0,28.0159]
[1610020913255,8.60432318,1192.3,1190.4,65.3233]
[1610020913456,8.60432318,1192.3,1190.0,18.2606]
[1610020913657,8.60432318,1192.3,1190.6,65.9631]
[1610020913859,4.93032318,1192.3,1190.6,65.9631]
[1610020918167,8.60432318,1192.3,1190.6,65.9631]
[1610020918366,4.93032318,1192.3,1190.6,65.9631]
[1610020918566,8.60432318,1192.3,1190.6,65.9631]
[1610020919168,4.93032318,1192.3,1190.6,65.9631]
[1610020920973,4.93032318,1192.3,1190.7,6.2016]
[1610020921374,4.93032318,1192.3,1191.6,51.0922]
[1610020927578,4.93032318,1192.3,1190.8,6.2209]
[1610020927780,4.93032318,1192.3,1192.1,61.5326]
[1610020927981,4.93032318,1192.3,1190.8,6.2209]
[1610020928380,4.93032318,1192.3,1192.0,56.5522]
[1610020941388,4.93032318,1192.3,1190.8,6.2209]
[1610020941587,4.93032318,1192.3,1192.0,55.5506]
[1610020946799,4.93032318,1192.3,1190.8,6.2209]
[1610020946995,4.93032318,1192.3,1192.2,65.6769]
[1610020947197,4.93032318,1192.3,1190.8,6.2209]
[1610020949599,4.93032318,1192.3,1192.1,47.2063]
[1610020949999,4.93032318,1192.3,1190.8,6.2209]
[1610020950200,4.93032318,1192.3,1191.6,59.4646]
[1610020954911,4.93032318,1192.3,1190.8,6.2209]
[1610020956110,4.93032318,1192.3,1190.9,6.2019]
[1610020956914,4.93032318,1192.3,1192.1,62.3465]
[1610020959311,57.1831,1196.8,1192.1,62.3465]
[1610020959513,11.051,1197.5,1190.8,6.2209]
[1610020959711,11.051,1197.5,1193.4,50.917]
[1610020960115,11.051,1197.5,1193.5,12.202]
[1610020971524,11.051,1197.5,1194.7,52.7635]
[1610020972124,11.051,1197.5,1194.8,6.2469]
[1610020972324,11.051,1197.5,1194.8,12.303]
[1610020974827,7.377,1197.5,1194.8,12.303]
[1610020976831,11.051,1197.5,1194.8,12.303]
[1610020978733,11.051,1197.5,1194.8,6.0561]
[1610020978934,11.051,1197.5,1194.2,64.4101]
[1610020987141,11.051,1197.5,1192.0,5.7557]
[1610020987341,11.051,1197.5,1193.7,54.0055]
[1610020987742,11.051,1197.5,1193.8,5.9615]
[1610020988143,11.051,1197.5,1193.9,5.9413]
[1610020996556,7.377,1197.5,1194.7,67.9991]
[1610020996754,7.377,1197.5,1193.9,5.9413]
[1610020996956,7.377,1197.5,1194.9,65.5616]
[1610020997353,7.377,1197.5,1195.0,12.4938]
[1610020998956,3.674,1198.7,1195.0,12.4938]
[1610021003060,3.674,1198.7,1196.2,60.747]
[1610021003461,3.674,1198.7,1196.3,5.8657]
[1610021003859,3.674,1198.7,1196.4,6.2146]
[1610021004061,0.39981176,1199.7,1196.4,6.2146]
[1610021005361,0.39981176,1199.7,1197.5,58.0778]
[1610021008262,0.39981176,1199.7,1197.6,5.9552]
[1610021008465,0.39981176,1199.7,1197.7,6.2458]
[1610021028383,0.39981176,1199.7,1197.7,8.6533]
[1610021033892,0.39981176,1199.7,1197.7,59.6845]
[1610021042497,0.39981176,1199.7,1197.7,8.6533]
[1610021050807,0.39981176,1199.7,1197.9,56.6506]
[1610021051608,0.39981176,1199.7,1197.7,8.6533]
[1610021069421,5.7393,1203.4,1197.7,8.6533]
[1610021069622,3.674,1202.3,1198.9,65.9769]
[1610021070023,3.674,1202.3,1199.0,6.1931]
[1610021070623,3.674,1202.3,1199.1,5.8936]
[1610021077934,0.39981176,1203.1,1200.3,59.2323]
[1610021078133,0.39981176,1203.1,1199.1,5.8936]
[1610021078332,0.39981176,1203.1,1200.7,48.0218]
[1610021078531,0.39981176,1203.1,1199.1,5.8936]
[1610021078731,0.39981176,1203.1,1201.4,54.5268]
[1610021079135,13.99040176,1205.2,1201.4,54.5268]
[1610021080337,22.38870176,1205.2,1204.9,4.00959]
[1610021080537,1.1263,1205.2,1204.9,4.00959]
[1610021080737,4.00959,1205.3,1204.9,4.00959]
[1610021081339,4.00959,1205.3,1203.2,68.6337]
[1610021082339,4.00959,1204.9,1204.6,4.00959]
[1610021084339,4.00959,1204.7,1204.6,4.00959]
[1610021084839,4.00959,1204.7,1201.4,2.3526]
[1610021085239,11.38659,1204.7,1201.1,64.6277]
[1610021085841,7.377,1204.7,1201.1,64.6277]
[1610021086343,4.00959,1204.5,1201.1,64.6277]
[1610021087143,4.00959,1204.5,1200.5,5.8507]
[1610021087345,49.643,1203.8,1199.9,56.8061]
[1610021087543,53.317,1203.8,1199.9,56.8061]
[1610021088343,57.32659,1203.8,1203.4,4.00959]
[1610021088543,7.68359,1203.8,1203.4,4.00959]
[1610021088743,3.674,1203.8,1203.4,4.00959]
[1610021090246,3.674,1203.8,1203.6,4.00959]
[1610021090444,4.00959,1204.1,1203.6,4.00959]
[1610021092246,4.00959,1204.1,1204.0,4.00959]
[1610021092645,7.377,1204.7,1204.0,2.0571]
[1610021094249,7.377,1204.7,1204.6,4.00959]
[1610021094649,3.674,1205.3,1204.6,4.00959]
[1610021096352,3.674,1205.3,1205.2,4.00959]
[1610021096552,4.40940176,1205.5,1205.2,4.00959]
[1610021097353,0.39981176,1205.5,1205.2,4.00959]
[1610021098254,0.39981176,1205.5,1205.4,4.00959]
[1610021102961,18.16240176,1206.9,1205.4,4.00959]
[1610021103160,4.00959,1206.9,1205.4,4.00959]
[1610021103762,54.4732,1207.4,1205.4,4.00959]
[1610021103962,54.4732,1207.4,1205.4,13.25739]
[1610021104362,54.4732,1207.4,1207.1,4.00959]
[1610021104563,4.00959,1207.5,1207.1,4.00959]
[1610021105164,3.674,1208.8,1207.1,4.00959]
[1610021106265,3.674,1208.8,1207.6,4.00959]
[1610021106963,3.674,1208.8,1206.2,57.8711]
[1610021107367,2.0476,1208.7,1206.2,57.8711]
[1610021108271,2.0476,1208.7,1207.1,4.00959]
[1610021108665,46.2442,1208.5,1207.1,4.00959]
[1610021110367,46.2442,1208.5,1205.7,59.6514]
[1610021110368,4.00959,1207.8,1207.6,4.00959]
[1610021110768,4.00959,1207.8,1205.7,59.6514]
[1610021110967,4.00959,1207.8,1205.3,46.3009]
[1610021111167,4.07381176,1207.7,1205.3,46.3009]
[1610021112270,4.07381176,1207.7,1207.6,4.00959]
[1610021112670,0.39981176,1207.7,1207.6,4.00959]
[1610021114070,0.39981176,1207.7,1205.3,46.3009]
[1610021114270,8.08340176,1207.7,1207.4,4.00959]
[1610021114670,4.07381176,1207.7,1207.4,4.00959]
[1610021115574,4.07381176,1207.7,1204.1,11.9939]
[1610021115771,4.07381176,1207.7,1204.8,69.0396]
[1610021116374,4.07381176,1207.7,1206.8,4.00959]
[1610021117175,0.39981176,1207.7,1206.8,4.00959]
[1610021118375,4.40940176,1207.7,1207.2,4.00959]
[1610021118676,4.40940176,1207.7,1205.8,55.5932]
[1610021118875,4.40940176,1207.7,1204.0,2.0571]
[1610021119275,8.08340176,1207.7,1204.9,54.4353]
[1610021120376,4.00959,1207.0,1206.8,4.00959]
[1610021120577,4.00959,1207.0,1204.9,54.4353]
[1610021120778,4.00959,1207.0,1202.9,5.7394]
[1610021120976,4.00959,1207.0,1204.0,62.7123]
[1610021121178,11.38659,1207.0,1204.0,62.7123]
[1610021122377,4.00959,1205.8,1205.6,4.00959]
[1610021124381,4.00959,1205.8,1205.4,4.00959]
[1610021124980,61.7917,1206.0,1205.4,4.00959]
[1610021125180,61.7917,1206.0,1205.4,6.16579]
[1610021125580,3.1001,1206.8,1205.4,6.16579]
[1610021125781,7.377,1207.0,1205.4,6.16579]
[1610021126383,4.00959,1206.4,1205.4,2.1562]
[1610021128386,62.7086,1206.6,1205.9,4.00959]
[1610021128585,62.7086,1206.6,1205.4,2.1562]
[1610021130192,62.7086,1206.6,1203.9,64.8612]
[1610021130386,4.00959,1205.2,1205.0,4.00959]
[1610021131194,10.95099,1205.2,1203.4,61.7036]
[1610021131399,4.00959,1205.2,1201.4,11.6032]
[1610021131593,4.00959,1205.2,1201.6,47.3572]
[1610021132393,4.00959,1204.5,1201.6,47.3572]
[1610021132587,8.7157,1204.4,1201.6,47.3572]
[1610021132787,4.00959,1204.5,1199.5,12.3879]
[1610021132987,57.7146,1204.1,1200.7,58.0875]
[1610021134387,4.00959,1203.1,1202.8,4.00959]
[1610021134787,4.00959,1203.1,1200.7,58.0875]
[1610021135890,4.00959,1203.1,1199.5,12.3879]
[1610021136491,2.5543,1204.7,1202.6,4.00959]
[1610021136698,56.6733,1204.2,1202.6,4.00959]
[1610021137192,2.275,1205.0,1202.6,4.00959]
[1610021137393,3.0956,1205.5,1202.6,4.00959]
[1610021137793,68.1703,1205.6,1202.6,4.00959]
[1610021138493,3.4126,1206.5,1204.7,4.00959]
[1610021138694,64.3004,1205.8,1204.7,4.00959]
[1610021138894,10.992,1207.2,1199.5,12.3879]
[1610021139094,4.3847,1206.5,1199.5,12.3879]
[1610021139294,49.3646,1206.1,1200.6,62.039]
[1610021139494,52.0677,1206.1,1200.6,62.039]
[1610021139694,52.0677,1206.1,1200.7,5.8875]
[1610021139994,52.0677,1206.1,1200.7,12.1085]
[1610021140395,4.00959,1204.6,1204.5,4.00959]
[1610021140594,4.00959,1204.6,1200.7,12.1085]
[1610021142294,1.1734,1205.3,1200.7,12.1085]
[1610021142498,1.1734,1205.3,1204.7,4.00959]
[1610021142693,3.674,1205.4,1204.7,4.00959]
[1610021144398,4.00959,1205.1,1205.0,4.00959]
[1610021144605,3.674,1205.4,1205.0,4.00959]
[1610021144799,3.674,1205.4,1205.0,6.35529]
[1610021144999,11.051,1207.0,1205.0,6.35529]
[1610021146501,4.00959,1206.0,1205.9,4.00959]
[1610021147102,4.00959,1206.0,1205.0,2.3457]
[1610021147401,11.051,1207.0,1205.0,2.3457]
[1610021148202,11.051,1207.0,1205.0,71.376]
[1610021148603,11.051,1207.0,1206.9,4.00959]
[1610021148803,4.00959,1207.1,1206.9,4.00959]
[1610021149503,4.00959,1207.1,1205.0,71.376]
[1610021149504,4.00959,1207.1,1205.0,2.3457]
[1610021149705,4.00959,1207.1,1202.9,11.8446]
[1610021149706,4.00959,1207.1,1205.8,53.0277]
[1610021150507,11.051,1208.6,1206.2,4.00959]
[1610021150707,11.051,1208.6,1205.8,53.0277]
[1610021150904,11.051,1208.6,1205.8,55.4751]
[1610021151705,41.051,1208.6,1205.8,55.4751]
[1610021152604,41.051,1208.6,1205.8,2.4474]
[1610021152605,4.00959,1206.0,1205.8,2.4474]
[1610021153906,67.5514,1207.4,1205.8,2.4474]
[1610021154505,67.5514,1207.4,1206.3,4.00959]
[1610021154906,67.5514,1207.4,1205.8,2.4474]
[1610021155106,11.051,1208.6,1205.8,2.4474]
[1610021155306,41.051,1208.6,1205.8,2.4474]
[1610021155706,11.051,1208.6,1205.8,2.4474]
[1610021155906,11.051,1208.6,1205.4,62.7109]
[1610021156507,11.051,1208.6,1207.1,4.00959]
[1610021157409,11.051,1208.6,1205.4,62.7109]
[1610021157611,19.1102,1208.6,1205.4,62.7109]
[1610021158511,4.00959,1207.1,1206.8,4.00959]
[1610021160113,4.00959,1207.1,1205.4,62.7109]
[1610021160313,7.68359,1207.1,1204.8,69.1741]
[1610021160517,11.051,1207.1,1206.5,4.00959]
[1610021160714,52.5225,1208.0,1206.5,4.00959]
[1610021160918,58.066,1209.1,1206.5,4.00959]
[1610021161115,122.3868,1209.1,1206.5,4.00959]
[1610021161315,30.0,1209.0,1206.5,4.00959]
[1610021162316,122.3868,1209.1,1206.5,4.00959]
[1610021162517,4.00959,1207.6,1207.4,4.00959]
[1610021162918,58.066,1209.1,1207.4,4.00959]
[1610021164322,66.004,1209.1,1206.7,50.7766]
[1610021164522,4.00959,1207.2,1206.9,4.00959]
[1610021166321,4.00959,1207.2,1205.6,61.4842]
[1610021166521,4.07381176,1207.7,1206.5,4.00959]
[1610021166721,11.45081176,1207.7,1052.3,0.61421067]
[1610021166922,11.45081176,1207.7,1197.8,11.5685]
[1610021167123,79.20611176,1207.7,1200.7,49.2867]
[1610021167325,2.3023,1207.6,1200.7,49.2867]
[1610021167522,2.3023,1207.6,1200.8,5.7676]
[1610021167821,2.3023,1207.6,1200.9,5.7548]
[1610021168122,3.4655,1207.6,1200.9,5.7548]
[1610021168524,3.4655,1207.6,1206.0,4.00959]
[1610021168723,1.1632,1207.6,1206.0,4.00959]
[1610021168924,11.45081176,1207.7,1206.0,4.00959]
[1610021170623,11.45081176,1207.7,1206.6,4.00959]
[1610021170823,4.07381176,1207.7,1206.6,4.00959]
[1610021171525,0.39981176,1207.7,1206.6,4.00959]
[1610021171925,4.07381176,1207.7,1205.2,63.4683]
[1610021172625,4.07381176,1207.7,1206.1,4.00959]
[1610021173227,4.07381176,1207.7,1206.1,6.04889]
[1610021173629,4.07381176,1207.7,1206.1,2.0393]
[1610021174536,4.07381176,1207.7,1206.5,4.00959]
[1610021174727,4.07381176,1207.7,1206.1,2.0393]
[1610021176529,4.07381176,1207.7,1206.7,4.00959]
[1610021177429,0.39981176,1207.7,1206.7,4.00959]
[1610021178230,0.39981176,1207.7,1205.9,54.1715]
[1610021178633,0.39981176,1207.7,1207.1,4.00959]
[1610021178834,0.39981176,1207.7,1207.1,6.08189]
[1610021180634,4.00959,1207.2,1207.1,6.08189]
[1610021183135,0.39981176,1207.7,1207.1,6.08189]
[1610021184636,0.39981176,1207.7,1207.6,4.00959]
[1610021185737,0.39981176,1207.7,1206.9,68.9834]
[1610021186442,0.39981176,1207.7,1204.5,11.9769]
[1610021186642,11.45081176,1207.7,1207.4,4.00959]
[1610021186840,0.39981176,1207.7,1207.4,4.00959]
[1610021188442,0.39981176,1207.7,1206.5,51.2871]
[1610021188639,0.39981176,1207.7,1207.4,4.00959]
[1610021190640,0.39981176,1207.7,1207.6,4.00959]
[1610021192239,0.39981176,1207.7,1207.2,56.1956]